Cogmind - Beta 14 @@@ ROGUE MODE // 2024.09.01 @ 15:11:18 Player: Lord_Devi Result: Destroyed by X-57 Shotgunner with Shotgun Performance ------------- Evolutions (2) 1000 Regions Visited (5) 1000 Robots Destroyed (17) 85 Value Destroyed (623) 623 Prototype IDs (4) 80 Alien Tech Used (0) 0 Bonus (300) 300 TOTAL SCORE: 3088 Bonus ------- Aligned with FarCom 300 Cogmind --------- Core Integrity 0/550 Matter 299/300 Energy 96/100 System Corruption 1% Temperature Cool (0) Movement Core (50) Location -8/Materials Parts ------- > --- POWER (1) -------- (None) > --- PROPULSION (6) --- (None) > --- UTILITY (2) ------ Terrain Scanner > --- WEAPON (2) ------- (None) > --- INVENTORY (5) ---- Advanced Visual Processing Unit Chronowheel Latent Energy Streamer Light Assault Rifle Peak State ------------ > --- POWER ------------ Improved Deuterium Engine > --- PROPULSION ------- Light Treads Improved Carbon-fiber Leg Improved Hover Unit > --- UTILITY ---------- Terrain Scanner Improved Targeting Computer > --- WEAPON ----------- Mace > --- INVENTORY -------- Advanced Visual Processing Unit Chronowheel Latent Energy Streamer Light Assault Rifle Light Assault Rifle [Rating: 18] Favorites ----------- Power Light Ion Engine Engine Light Ion Engine Propulsion Flight Unit Treads Light Treads Leg Improved Carbon-fiber Leg Hover Unit Improved Hover Unit Flight Unit Flight Unit Utility Terrain Scanner Device Terrain Scanner Storage Small Storage Unit Processor Improved Targeting Computer Weapon Light Assault Rifle Ballistic Gun Light Assault Rifle Impact Weapon Mace Special Melee Weapon Datajack Build | -11 -10 -10 -10 -9 -8 ------- Run | Yrd Mat Min Exi Min Mat Slots Evolved 4 | . . . . . 4 Power . | . . . . . . Propulsion 4 | . . . . . 4 Utility . | . . . . . . Weapon . | . . . . . . Parts Attached 26 | 5 7 . . . 14 Power 4 | 1 1 . . . 2 Engine 4 | 1 1 . . . 2 Core . | . . . . . . Reactor . | . . . . . . Propulsion 8 | 2 2 . . . 4 Treads 3 | 2 . . . . 1 Leg 2 | . . . . . 2 Wheel . | . . . . . . Hover 1 | . . . . . 1 Flight 2 | . 2 . . . . Utility 3 | . 2 . . . 1 Device 1 | . 1 . . . . Storage 1 | . 1 . . . . Processor 1 | . . . . . 1 Hackware . | . . . . . . Protection . | . . . . . . Artifact . | . . . . . . Weapon 11 | 2 2 . . . 7 Energy Gun . | . . . . . . Energy Cannon . | . . . . . . Ballistic Gun 7 | 2 1 . . . 4 Ballistic Cannon . | . . . . . . Launcher . | . . . . . . Special Weapon . | . . . . . . Impact Weapon 1 | . . . . . 1 Slashing Weapon . | . . . . . . Piercing Weapon . | . . . . . . Special Melee Weapon 3 | . 1 . . . 2 Unidentified Prototypes . | . . . . . . Parts Lost 13 | . . . . . 13 Power 3 | . . . . . 3 Propulsion 6 | . . . . . 6 Utility 1 | . . . . . 1 Weapon 3 | . . . . . 3 Highest Loss Streak 4 | . . . . . 4 To Critical Strikes . | . . . . . . Average Slot Usage (%) 69 | . 78 85 85 . 61 Engine 10 | . 14 14 14 . 7 Treads 6 | . 21 . . . 3 Hover 3 | . . . . . 6 Flight 11 | . 7 28 28 . 8 Device 8 | . . 14 14 . 9 Storage 1 | . 7 . . . . Processor 4 | . . . . . 8 Ballistic Gun 19 | . 27 28 28 . 13 Impact Weapon 1 | . . . . . 1 Peak Build Rating 18 | 5 6 6 8 8 18 Average Rating 8 | 3 5 6 6 8 11 On Entrance 5 | . 5 6 6 8 8 Naked Turns . | . . . . . . Heaviest Build 13 | 5 10 6 6 6 13 Greatest Support 40 | 40 40 8 8 8 30 Greatest Overweight (x) 1 | . . . . . 1 Average Overweight (x) . | . . . . . . Largest Inventory Capacity 8 | 5 8 5 5 5 5 Average Capacity 5 | 5 6 5 5 5 5 Most Carried 5 | 3 2 3 3 3 5 Average Carried 3 | 1 1 2 2 3 4 Final Capacity 5 | 5 5 5 5 5 5 Final Carried 4 | 2 2 3 3 3 4 Class Distribution -------------------- 46% | Mutant 24% | Scout 18% | Skirmisher 10% | Assassin Dominant Class ---------------- Mutant | -10/Materials Mutant | -10/Mines Mutant | -10/Exiles Mutant | -9/Mines Scout | -8/Materials Resources | -11 -10 -10 -10 -9 -8 ----------- Run | Yrd Mat Min Exi Min Mat Matter Collected 533 | 217 145 . . . 171 Remotely . | . . . . . . Salvage Created 717 | . 248 . . . 469 Parts 38 | . 19 . . . 19 Haulers Intercepted . | . . . . . . Recyclers Shooed . | . . . . . . Parts Field Recycled . | . . . . . . Retrieved Matter . | . . . . . . Parts Self-Destructed . | . . . . . . Prevented . | . . . . . . Kills | -11 -10 -10 -10 -9 -8 ------- Run | Yrd Mat Min Exi Min Mat Combat Hostiles Destroyed 15 | . 7 . . . 8 Melee 3 | . . . . . 3 Guns 9 | . 7 . . . 2 Classes Destroyed 6 | . 3 . . . 3 Recycler 1 | . . . . . 1 Watcher 1 | . 1 . . . . Swarmer 3 | . 3 . . . . Grunt 6 | . 4 . . . 2 Sentry 2 | . . . . . 2 Specialist 4 | . . . . . 4 Best Kill Streak 3 | . 3 . . . 2 Combat Bots Only 3 | . 3 . . . 2 Max Kills in Single Turn 1 | . 1 . . . 1 Gunslinging . | . . . . . . Exploded . | . . . . . . Melee 1 | . . . . . 1 Uniques/NPCs Destroyed . | . . . . . . Combat | -11 -10 -10 -10 -9 -8 -------- Run | Yrd Mat Min Exi Min Mat Hostile Shots Fired 205 | . 69 . . 4 132 Missed 65 | . 18 . . 2 45 Damage Taken 1867 | . 545 . . 24 1298 Core 689 | . 125 . . 11 553 Absorbed by Shields . | . . . . . . Core Remaining (%) 72 | 100 . . . 45 . Volleys Fired 50 | . 39 . . . 11 Largest 2 | . 2 . . . 2 Hottest 40 | . 40 . . . 40 Shots Fired 98 | . 78 . . . 20 Gun 98 | . 78 . . . 20 Cannon . | . . . . . . Launcher . | . . . . . . Special . | . . . . . . Kinetic 98 | . 78 . . . 20 Thermal . | . . . . . . Explosive . | . . . . . . Electromagnetic . | . . . . . . Robot Hit Streak 8 | . 8 . . . 4 Robot Miss Streak 6 | . 6 . . . 3 Penetration Max . | . . . . . . Secondary Targets 2 | . 2 . . . . Max Gunslinging Chain 1 | . 1 . . . . Shots Hit Robots 82 | . 45 . . . 37 Core Hits 26 | . 18 . . . 8 Critical Kills . | . . . . . . Critical Parts Destroyed 4 | . . . . . 4 Critical Strikes 4 | . . . . . 4 Smash 4 | . . . . . 4 Melee Attacks 37 | . 3 . . . 34 Impact 31 | . . . . . 31 Slashing . | . . . . . . Piercing . | . . . . . . Sneak Attacks 2 | . 2 . . . . Combat Hostiles . | . . . . . . Follow-up Attacks . | . . . . . . Damage Inflicted 1146 | . 328 . . . 818 Guns 435 | . 328 . . . 107 Cannons . | . . . . . . Explosions . | . . . . . . Melee 711 | . . . . . 711 Ramming . | . . . . . . Kinetic 435 | . 328 . . . 107 Thermal . | . . . . . . Explosive . | . . . . . . Electromagnetic . | . . . . . . Impact 711 | . . . . . 711 Slashing . | . . . . . . Piercing . | . . . . . . Highest Corruption 1 | . . . . . 1 Average Corruption 1 | . . . . . 1 Corruption Purged . | . . . . . . Corruption Blocked . | . . . . . . Effects 7 | . . . . . 7 Message Errors 1 | . . . . . 1 Matter Fused 2 | . . . . . 2 Heat Flow Errors 1 | . . . . . 1 Data Loss (minor) 1 | . . . . . 1 Data Loss (major) 2 | . . . . . 2 Overload Shots . | . . . . . . Overflow Damage 195 | . . . . . 195 Projectiles . | . . . . . . Explosions . | . . . . . . Melee 195 | . . . . . 195 Knockbacks 4 | . . . . . 4 Impact 3 | . . . . . 3 Kinetic . | . . . . . . Secondary 1 | . . . . . 1 Self-Inflicted Damage . | . . . . . . Shots . | . . . . . . Rammed . | . . . . . . Targets Rammed . | . . . . . . Kicked . | . . . . . . Crushed . | . . . . . . Highest Temperature 231 | . 79 . . 1 231 Average Temperature 54 | . 34 . . 1 127 Received Heat Transfer 474 | . 225 . . 15 234 Siege Activations . | . . . . . . Robots Corrupted 4 | . . . . . 4 Combat Hostiles 3 | . . . . . 3 Parts Fried 4 | . . . . . 4 Impact Corruptions 8 | . . . . . 8 Robots Melted . | . . . . . . Combat Hostiles . | . . . . . . Parts Melted 1 | . . . . . 1 Heat Transferred . | . . . . . . Parts Sabotaged . | . . . . . . Parts Stolen . | . . . . . . Parts Stripped . | . . . . . . Power Chain Reactions . | . . . . . . Alert | -11 -10 -10 -10 -9 -8 ------- Run | Yrd Mat Min Exi Min Mat Peak Influence 246 | . 246 125 . 15 105 Initial 95 | . . 95 . . 5 Average 53 | . 101 101 . 11 33 Maximum Alert Level 1 | . 1 . . . . Low Security (%) 93 | 100 74 100 . 100 100 Level 1 6 | . 25 . . . . Level 2 . | . . . . . . Level 3 . | . . . . . . Level 4 . | . . . . . . Level 5 . | . . . . . . High Security . | . . . . . . Max Security . | . . . . . . Squads Dispatched 7 | . 1 . . . 6 Investigation 1 | . 1 . . . . Extermination . | . . . . . . Reinforcement 6 | . . . . . 6 Assault . | . . . . . . Garrison . | . . . . . . Intercept . | . . . . . . Searches Triggered . | . . . . . . Construction Impeded 1 | . . . . . 1 Haulers Reinforced . | . . . . . . Active Scanning Responses . | . . . . . . Cargo Convoy Interrupts . | . . . . . . Stealth | -11 -10 -10 -10 -9 -8 --------- Run | Yrd Mat Min Exi Min Mat Distress Signals 2 | . . . . . 2 Communications Jammed . | . . . . . . Distress Signals . | . . . . . . Times Spotted 32 | . 11 1 . 5 15 Peak Tracking Total 5 | . 3 2 . 5 5 Tactical Retreats 3 | . 1 1 . . 1 Traps | -11 -10 -10 -10 -9 -8 ------- Run | Yrd Mat Min Exi Min Mat Traps Triggered 2 | . 1 . . . 1 Indirectly . | . . . . . . Trap Hack Attempts . | . . . . . . Triggered . | . . . . . . Disarmed . | . . . . . . Reprogrammed . | . . . . . . Reused . | . . . . . . Traps Extracted . | . . . . . . Installed . | . . . . . . Triggered . | . . . . . . Machines | -11 -10 -10 -10 -9 -8 ---------- Run | Yrd Mat Min Exi Min Mat Machines Disabled . | . . . . . . Max in Single Turn . | . . . . . . Machines Repaired . | . . . . . . Machines Dismantled . | . . . . . . Machines Sabotaged . | . . . . . . Overloaded Fab Kills . | . . . . . . Hacking | -11 -10 -10 -10 -9 -8 --------- Run | Yrd Mat Min Exi Min Mat Machines Accessed 8 | . 2 . 4 . 2 Terminals 3 | . 2 . . . 1 Fabricators . | . . . . . . Repair Stations . | . . . . . . Recycling Units . | . . . . . . Scanalyzers 1 | . . . . . 1 Garrison Access . | . . . . . . Total Hacks 60 | . 5 . 49 . 6 Successful 56 | . 3 . 49 . 4 Failed 4 | . 2 . . . 2 Catastrophic . | . . . . . . Database Lockouts . | . . . . . . Manual 2 | . . . 2 . . Terminals 8 | . 5 . . . 3 Fabricators . | . . . . . . Repair Stations . | . . . . . . Recycling Units . | . . . . . . Scanalyzers 3 | . . . . . 3 Garrison Access . | . . . . . . Terminal Hacks 54 | . 3 . 49 . 2 Record 52 | . 1 . 49 . 2 Prototype ID Bank 1 | . 1 . . . . Locate Traps 1 | . 1 . . . . Fabricator Hacks . | . . . . . . Repair Station Hacks . | . . . . . . Recycling Unit Hacks . | . . . . . . Scanalyzer 2 | . . . . . 2 Insert Component 2 | . . . . . 2 Garrison Access Hacks . | . . . . . . Unauthorized Hacks . | . . . . . . Terminals . | . . . . . . Fabricators . | . . . . . . Repair Stations . | . . . . . . Recycling Units . | . . . . . . Scanalyzers . | . . . . . . Garrison Access . | . . . . . . Data Cores Recovered . | . . . . . . Used . | . . . . . . Hacking Detections 4 | . 2 . . . 2 Full Trace Events . | . . . . . . Feedback Events . | . . . . . . Feedback Blocked . | . . . . . . Robot Schematics Acquired . | . . . . . . Robots Built . | . . . . . . Authchips . | . . . . . . Time . | . . . . . . Total Robot Build Rating . | . . . . . . Part Schematics Acquired . | . . . . . . Parts Built . | . . . . . . Authchips . | . . . . . . Time . | . . . . . . Total Part Build Rating . | . . . . . . Parts Repaired . | . . . . . . Time . | . . . . . . Parts Recycled . | . . . . . . Recycled Matter . | . . . . . . Retrieved Matter . | . . . . . . Retrieved Components . | . . . . . . Parts Scanalyzed . | . . . . . . Part Schematics Acquired . | . . . . . . Parts Damaged . | . . . . . . Bothacking | -11 -10 -10 -10 -9 -8 ------------ Run | Yrd Mat Min Exi Min Mat Used RIF Installer . | . . . . . . Robots Hacked 3 | . 2 . . . 1 Non-combat 2 | . 2 . . . . Combat 1 | . . . . . 1 Robot Hacks Applied 3 | . 2 . . . 1 parse_system 2 | . 1 . . . 1 no_distress 1 | . 1 . . . . Relay Couplers Released . | . . . . . . Fabnet Peak Effective % . | . . . . . . Robots Rewired . | . . . . . . Allies Hacked . | . . . . . . Hacks Repelled . | . . . . . . Allies | -11 -10 -10 -10 -9 -8 -------- Run | Yrd Mat Min Exi Min Mat Total Allies . | . . . . . . Largest Group . | . . . . . . Highest-Rated Group . | . . . . . . Highest-Rated Ally . | . . . . . . Total Orders . | . . . . . . Ally Attacks . | . . . . . . Total Damage . | . . . . . . Kills . | . . . . . . Allies Corrupted . | . . . . . . Allies Melted . | . . . . . . Intel | -11 -10 -10 -10 -9 -8 ------- Run | Yrd Mat Min Exi Min Mat Robot Analysis Total . | . . . . . . Derelict Logs Recovered . | . . . . . . Drone Launches . | . . . . . . Drone Recoveries . | . . . . . . Exploration | -11 -10 -10 -10 -9 -8 ------------- Run | Yrd Mat Min Exi Min Mat Turns Passed 1596 | 78 357 76 223 4 858 Spaces Moved 1600 | 46 258 203 581 11 501 Core 11 | 6 . . . . 5 Treads 226 | 40 99 . . . 87 Legs 29 | . . . . . 29 Wheels . | . . . . . . Hover 197 | . . . . . 197 Flight 1137 | . 159 203 581 11 183 Fastest Speed 37 | 50 37 37 37 37 37 Average Speed 60 | 145 84 37 37 37 78 Slowest Speed 160 | 160 160 37 37 37 160 Overloaded Moves . | . . . . . . Propulsion Burnouts . | . . . . . . Robots Hopped . | . . . . . . Cave-ins Triggered . | . . . . . . Exploration Rate (%) 34 | 6 40 39 93 5 24 Regions Visited 5 Branch Regions 3 Pre-discovered Areas 1 | . . . 1 . . Known Exits Taken . | . . . . . . Unknown Exits Taken 5 | 1 1 1 1 1 . Scrap Searched . | . . . . . . Spaces Dug . | . . . . . . Terrain Destroyed . | . . . . . . Melee . | . . . . . . Projectile . | . . . . . . AOE . | . . . . . . Terrain Rammed . | . . . . . . Walls Destroyed . | . . . . . . Machines Disabled . | . . . . . . Actions | -11 -10 -10 -10 -9 -8 --------- Run | Yrd Mat Min Exi Min Mat Total 2086 | 57 335 203 589 10 892 Wait 347 | . 17 . 5 . 325 Move 1595 | 45 257 202 580 10 501 Hop . | . . . . . . Pick Up 22 | 7 6 1 2 . 6 Fast Attach 4 | . . . . . 4 Attach 15 | 5 5 . . . 5 Detach 1 | . 1 . . . . Swap 7 | . 2 . . . 5 Drop 8 | . 5 . 2 . 1 Fire 50 | . 39 . . . 11 Melee 37 | . 3 . . . 34 Ram . | . . . . . . Kick . | . . . . . . Crush . | . . . . . . Escape Stasis . | . . . . . . Rewire . | . . . . . . Trap . | . . . . . . Miscellaneous . | . . . . . . Route ------- -11/Scrapyard -10/Materials -10/Mines -10/Exiles -9/Mines -8/Materials (discovered 1 exit: [*Fac]) History --------- Turn | Location | Event 21 | -11/Scrapyard | Discovered new exit (range 15) 79 | -11/Scrapyard | Entered Materials 317 | -10/Materials | Build established: Mutant 383 | -10/Materials | Discovered new exit (range 16) 436 | -10/Materials | Entered Mines 444 | -10/Mines | A weapon hastily lodged in a ceiling crevice suddenly fell to the ground 500 | -10/Mines | Deemed a non-threat by the Exiles lab entrance 500 | -10/Mines | Discovered new exit (range 5) 507 | -10/Mines | Assembled infested the area 512 | -10/Mines | Entered Exiles 521 | -10/Exiles | Met 8R-AWN 529 | -10/Exiles | Met EX-HEX 556 | -10/Exiles | Met EX-DEC 571 | -10/Exiles | Visited The Gauntlet 624 | -10/Exiles | Learned location of Zion (-6) 643 | -10/Exiles | Discovered new exit (range 14) 665 | -10/Exiles | Met EX-BIN 673 | -10/Exiles | Aligned with FarCom system 673 | -10/Exiles | Given EX-Vault access code 685 | -10/Exiles | Opened EX-Vault 689 | -10/Exiles | Found Prototype Device 692 | -10/Exiles | Found Prototype Energy Cannon 704 | -10/Exiles | Warned to stay clear of 0b10 Research branches 735 | -10/Exiles | Stole two prototypes: Chronowheel, Latent Energy Streamer 735 | -10/Exiles | Entered Mines 737 | -9/Mines | Core integrity fell below 50% 737 | -9/Mines | Discovered new exit (range 7) 739 | -9/Mines | Entered Materials 739 | -8/Materials | Evolved 4 slots: Propulsion x4 1192 | -8/Materials | Identified Chronowheel 1192 | -8/Materials | Identified Latent Energy Streamer 1463 | -8/Materials | Lost 3 parts (1p1n1w) 1536 | -8/Materials | Core integrity fell below 50% 1557 | -8/Materials | Lost 3 parts (1p2n) 1588 | -8/Materials | Discovered new exit (range 8) 1592 | -8/Materials | Core integrity fell below 20% 1597 | -8/Materials | Destroyed by X-57 Shotgunner with Shotgun Last Messages --------------- effect. 01571_ G-47 Trooper IFF system glitched. 01571_ G-47 Trooper suffers critical hit (Burn). 01572_ G-47 Trooper system terminally corrupted. 01572_ Aluminum Leg fried. 01584_ G-47 Trooper destroyed. 01586_ ALERT: Suspicious intruders detected, dispatching Specialist reinforcements to area. 01588_ EXIT=FOUND 01591_ Penetrated by Slug. 01591_ Mace destroyed. 01591_ VSS Leg destroyed. 01591_ Knocked back. 01595_ H-61 Shepherd calls for reinforcements. 01595_ ALERT: Hostile activity reported, dispatching reinforcements to area. 01595_ Lgt. Assault Rifle destroyed. 01595_ Imp. Targeting Computer destroyed. 01595_ Critical hit (Blast). 01595_ Knocked back. Map ----- +----------------------------------------------------+ | | | | | | | | | | | | | | | ?????????????????????????????????????????????????? | | ?????????????????????????????????????????????????? | | ?????????????????????????????????????????????????? | | ????????????????????????????????????????????????## | | ??????????????????????????????????????????#?????# | | ????????????????????????????????????????????????# | | ????????????????????????????????#??????########## | | ???????????????????????????????????????# # | | ????????????????????????#??????????????# """ # | | ??????????????????#?????????????????#??# """ # | | ??????????????????????????#????????????# """ # | | ?????????????????????????#?#????????#??# # | | ??????????????????##??########????????## """ # | | ??????????????????# ?# ###???????# """ # | | ??????????????????# < # #??#?#???## """ # | | ????????????????? # # %""" #??#?#?##?# # | | ????????????????" + Hx """ ####??##??######+### | | ?????????????? ???????# %""" ##?###??###### ### | | ?????????????? ??????x# @ ###?##??# + | | ??????????????????????####g###???##?## # | | ?????????????#?????????# =%!########## # ### | | ????????????????????? ?# [= ## ## ## ### | | ??????????????????? ??# ## ## ## #?# | | ?????????????????#?? ??# ## ## ## #?# | | ??????????????????? ??## ![ ## ## ## ### | | ????????????????"#?????#!%[%## ## ## #?# | | ??????????? ?? ???????#!%%%## ## ## #?# | | ????????????????## ###+######+######+### #### | | ???????????? ! ^ | | ???????????? g ^ | | ???????????? g | | ???????????#? ####g #################+######### | | ???????????????#?###+##??????##?#????# #????? | | ?????????????????? ??? ???#?##?#??##?# #????? | | ????????????????? ????""???#######?#?# #????? | | ???????????????? ?? ????"????##???#??# #????? | | ????????????????????"???? ????#??????# #????? | | ???????????????? ?? ??"?? #???#??#?#?# #???#? | | ???????????????????????" ?????#??????########????# | | ????????????????????? ????????#??#?????????#???? ? | | ?????????????????????????#????? ????????? ??????? | | ????????????????????????????#???????????????? ?? | | ?????????????????????????????? ?????? ???????????? | +----------------------------------------------------+ Best States ------------- Heat Dissipation 31 Energy Generation 16 Energy Capacity 290 Matter Stores 300 Matter Capacity 300 Sight Range 16 Terrain Scan Range 14 Terrain Scan Density 10 Evasion (%) 62 Targeting Accuracy 6 Recoil Reduction 2 Item Schematics ----------------- None Robot Schematics ------------------ None Fabricated ------------ Nothing Alien Tech Used ----------------- None Achievements -------------- None Challenges ------------ None Game ------ Seed ShieldMakeshiftReactor Manual? 0 Play Time 01:50:52 Cumulative 31.0 hours Start 2024.08.22 @ 03:27:15 End 2024.09.01 @ 15:11:18 Sessions 3 Manual Loads 0 Difficulty Rogue Special Mode None Game No. 26 Rogue 26 Adventurer 0 Explorer 0 Win Type - Total 0 Types 0/0/0/0/0/0/0/0/0 Lore% 11 Gallery% 17 Achievement% 19 Wizard Run 0 Options --------- Layout 1 ASCII 0 Keyboard 0 Movement Mouse Keybinds 0 Fullscreen 2 Font 48/Smallcaps Map View 50x35 Zoom Use 0% Tactical HUD 1 Map Filters NONE Filters NONE Steam 1 RUN: 4ca7d8ad-40c0-4e74-b81f-6c20610692fe